Cogmind - Beta 16.1 @@@ ROGUE MODE // 2026.02.23 @ 09:40:49 Player: McSaucyNugget Result: Destroyed by G-34 Mercenary with Small Laser Performance ------------- Evolutions (0) 0 Regions Visited (1) 200 Robots Destroyed (8) 40 Value Destroyed (141) 141 Prototype IDs (0) 0 Alien Tech Used (0) 0 Bonus (0) 0 TOTAL SCORE: 381 Bonus ------- None Cogmind --------- Core Integrity 0/250 Matter 220/300 Energy 99/100 System Corruption 0% Temperature Cool (6) Movement Core (100) Ox1 Location -10/Materials Parts ------- > --- POWER (1) -------- (None) > --- PROPULSION (2) --- (None) > --- UTILITY (2) ------ Small Storage Unit > --- WEAPON (2) ------- (None) > --- INVENTORY (8) ---- (None) Peak State ------------ > --- POWER ------------ Ion Engine > --- PROPULSION ------- Light Treads Light Treads > --- UTILITY ---------- Small Storage Unit Improved Terrain Scanner > --- WEAPON ----------- Assault Rifle Assault Rifle > --- INVENTORY -------- (None) [Rating: 9] Favorites ----------- Power Ion Engine Engine Ion Engine Propulsion Light Treads Treads Light Treads Utility Small Storage Unit Device Improved Terrain Scanner Storage Small Storage Unit Weapon Assault Rifle Energy Gun Small Laser Ballistic Gun Assault Rifle Build | -11 -10 ------- Run | Yrd Mat Slots Evolved . | . . Power . | . . Propulsion . | . . Utility . | . . Weapon . | . . Parts Attached 8 | 7 1 Power 1 | 1 . Engine 1 | 1 . Core . | . . Reactor . | . . Propulsion 2 | 2 . Treads 2 | 2 . Leg . | . . Wheel . | . . Hover . | . . Flight . | . . Utility 2 | 2 . Device 1 | 1 . Storage 1 | 1 . Processor . | . . Hackware . | . . Protection . | . . Artifact . | . . Weapon 3 | 2 1 Energy Gun 1 | . 1 Energy Cannon . | . . Ballistic Gun 2 | 2 . Ballistic Cannon . | . . Launcher . | . . Special Weapon . | . . Impact Weapon . | . . Slashing Weapon . | . . Piercing Weapon . | . . Special Melee Weapon . | . . Unidentified Prototypes . | . . Parts Lost 7 | . 7 Power 1 | . 1 Propulsion 2 | . 2 Utility 1 | . 1 Weapon 3 | . 3 Highest Loss Streak 7 | . 7 To Critical Strikes . | . . Average Backups . | . . Power . | . . Propulsion . | . . Utility . | . . Weapon . | . . Tool/Special . | . . Unused Backups 1 | 1 . Power 1 | 1 . Propulsion . | . . Utility . | . . Weapon . | . . Tool/Special . | . . Average Slot Usage (%) 87 | . 87 Engine 11 | . 11 Treads 24 | . 24 Device 10 | . 10 Storage 14 | . 14 Ballistic Gun 23 | . 23 Peak Build Rating 9 | 9 9 Average Rating 8 | 8 7 On Entrance 4 | . 9 Avg Prop Armor Cover (%) . | . . Naked Turns . | . . Heaviest Build 15 | 15 15 Greatest Support 40 | 40 40 Greatest Overweight (x) 1 | . 1 Average Overweight (x) . | . . Largest Inventory Capacity 8 | 8 8 Average Capacity 7 | 7 8 Most Carried 4 | 4 1 Average Carried . | . . Final Capacity 8 | 8 8 Final Carried . | . . Class Distribution -------------------- 100% | Mutant Dominant Class ---------------- Mutant | -10/Materials Resources | -11 -10 ----------- Run | Yrd Mat Matter Collected 227 | 169 58 Remotely . | . . Salvage Created 152 | 16 136 Parts 17 | 8 9 Haulers Intercepted . | . . Recyclers Shooed . | . . Parts Field Recycled . | . . Retrieved Matter . | . . Parts Self-Destructed . | . . Prevented . | . . Parts Restored . | . . Kills | -11 -10 ------- Run | Yrd Mat Combat Hostiles Destroyed 3 | . 3 Guns 3 | . 3 Classes Destroyed 4 | 2 2 Worker 3 | 2 1 Tunneler 1 | 1 . Watcher 1 | . 1 Grunt 3 | . 3 Best Kill Streak 4 | 1 4 Combat Bots Only 3 | . 3 Max Kills in Single Turn 1 | 1 1 Gunslinging . | . . Exploded . | . . Melee . | . . Uniques/NPCs Destroyed . | . . Combat | -11 -10 -------- Run | Yrd Mat Hostile Shots Fired 98 | . 98 Missed 18 | . 18 Hits 80 | . 80 Projectile 80 | . 80 Damage Taken 929 | . 929 Core 258 | . 258 Absorbed by Shields . | . . Core Remaining (%) 100 | 100 . Volleys Fired 25 | 2 23 Largest 2 | 2 2 Hottest 40 | 40 40 Shots Fired 38 | 4 34 Gun 38 | 4 34 Cannon . | . . Launcher . | . . Special . | . . Kinetic 34 | 4 30 Thermal 4 | . 4 Explosive . | . . Electromagnetic . | . . Robot Hit Streak 8 | 2 8 Robot Miss Streak 2 | 2 2 Penetration Max . | . . Secondary Targets 1 | . 1 Max Gunslinging Chain 1 | . 1 Shots Hit Robots 27 | 2 25 Core Hits 9 | 2 7 Critical Kills . | . . Critical Parts Destroyed . | . . Critical Strikes . | . . Melee Attacks . | . . Impact . | . . Slashing . | . . Piercing . | . . Sneak Attacks . | . . Combat Hostiles . | . . Follow-up Attacks . | . . Damage Inflicted 401 | 63 338 Guns 361 | 28 333 Cannons . | . . Explosions . | . . Melee . | . . Ramming 40 | 35 5 Kinetic 316 | 28 288 Thermal 45 | . 45 Explosive . | . . Electromagnetic . | . . Impact . | . . Slashing . | . . Piercing . | . . Highest Corruption . | . . Average Corruption . | . . Corruption Purged . | . . Corruption Blocked . | . . Overload Shots . | . . Overflow Damage . | . . Projectiles . | . . Explosions . | . . Melee . | . . Knockbacks . | . . Impact . | . . Kinetic . | . . Secondary . | . . Self-Inflicted Damage 1 | . 1 Shots . | . . Rammed 13 | 12 1 Targets Rammed 16 | 14 2 Kicked . | . . Crushed 3 | 2 1 Highest Temperature 78 | . 78 Average Temperature 38 | . 38 Received Heat Transfer 510 | . 510 Siege Activations . | . . Martial Activations . | . . Shielding Activations . | . . Robots Disrupted . | . . Combat Hostiles . | . . Robots Corrupted . | . . Combat Hostiles . | . . Parts Fried . | . . Impact Corruptions . | . . Robots Melted . | . . Combat Hostiles . | . . Parts Melted . | . . Heat Transferred 100 | . 100 Parts Sabotaged . | . . Parts Stolen . | . . Parts Stripped . | . . Power Chain Reactions . | . . Alert | -11 -10 ------- Run | Yrd Mat Maximum Alert Level . | . . Low Security (%) 100 | 100 100 Level 1 . | . . Level 2 . | . . Level 3 . | . . Level 4 . | . . Level 5 . | . . High Security . | . . Max Security . | . . Peak Influence 30 | 5 30 Initial . | . . Average . | . 2 Influence Increases 107 | 15 92 Destroy 0b10 Robot/C 60 | . 60 Destroy 0b10 Robot/NC 25 | 15 10 Destroy Leader 22 | . 22 Influence Decreases 107 | 15 92 Time Decay 42 | 15 27 Lost Part 65 | . 65 Squads Dispatched 1 | . 1 Investigation 1 | . 1 Extermination . | . . Reinforcement . | . . Assault . | . . Garrison . | . . Intercept . | . . Searches Triggered . | . . Construction Impeded . | . . Haulers Reinforced . | . . Active Scanning Responses . | . . Cargo Convoy Interrupts . | . . Stealth | -11 -10 --------- Run | Yrd Mat Distress Signals . | . . Communications Jammed . | . . Distress Signals . | . . Times Spotted 6 | . 6 Peak Tracking Total 5 | . 5 Tactical Retreats . | . . Traps | -11 -10 ------- Run | Yrd Mat Traps Triggered 1 | . 1 Indirectly . | . . Trap Hack Attempts . | . . Triggered . | . . Disarmed . | . . Reprogrammed . | . . Reused . | . . Traps Extracted . | . . Installed . | . . Triggered . | . . Machines | -11 -10 ---------- Run | Yrd Mat Machines Disabled . | . . Max in Single Turn . | . . Machines Repaired . | . . Machines Dismantled . | . . Machines Sabotaged . | . . Overloaded Fab Kills . | . . Hacking | -11 -10 --------- Run | Yrd Mat Machines Accessed . | . . Terminals . | . . Fabricators . | . . Repair Stations . | . . Recycling Units . | . . Scanalyzers . | . . Garrison Access . | . . Total Hacks . | . . Successful . | . . Failed . | . . Catastrophic . | . . Database Lockouts . | . . Manual . | . . Terminals . | . . Fabricators . | . . Repair Stations . | . . Recycling Units . | . . Scanalyzers . | . . Garrison Access . | . . Terminal Hacks . | . . Fabricator Hacks . | . . Repair Station Hacks . | . . Recycling Unit Hacks . | . . Scanalyzer . | . . Garrison Access Hacks . | . . Unauthorized Hacks . | . . Terminals . | . . Fabricators . | . . Repair Stations . | . . Recycling Units . | . . Scanalyzers . | . . Garrison Access . | . . Data Cores Recovered . | . . Used . | . . Hacking Detections . | . . Full Trace Events . | . . Feedback Events . | . . Feedback Blocked . | . . Robot Schematics Acquired . | . . Robots Built . | . . Authchips . | . . Time . | . . Total Robot Build Rating . | . . Part Schematics Acquired . | . . Parts Built . | . . Authchips . | . . Time . | . . Total Part Build Rating . | . . Part Studies Acquired . | . . Parts Repaired . | . . Time . | . . Parts Recycled . | . . Recycled Matter . | . . Retrieved Matter . | . . Retrieved Components . | . . Parts Scanalyzed . | . . Part Schematics Acquired . | . . Parts Damaged . | . . Bothacking | -11 -10 ------------ Run | Yrd Mat Used RIF Installer . | . . Robots Hacked . | . . Non-combat . | . . Combat . | . . Robot Hacks Applied . | . . Relay Couplers Released . | . . Fabnet Peak Effective % . | . . Robots Rewired . | . . Allies Hacked . | . . Hacks Repelled . | . . Allies | -11 -10 -------- Run | Yrd Mat Total Allies . | . . Largest Group . | . . Highest-Rated Group . | . . Highest-Rated Ally . | . . Total Orders . | . . Ally Attacks . | . . Total Damage . | . . Kills . | . . Allies Corrupted . | . . Allies Melted . | . . Intel | -11 -10 ------- Run | Yrd Mat Active Infowar (turns) 1348 | 1221 127 Terrain 1348 | 1221 127 Robot Analysis Total . | . . Derelict Logs Recovered . | . . Drone Launches . | . . Drone Recoveries . | . . Exploration | -11 -10 ------------- Run | Yrd Mat Turns Passed 1616 | 1446 170 Spaces Moved 961 | 889 72 Core 28 | 17 11 Treads 933 | 872 61 Legs . | . . Wheels . | . . Hover . | . . Flight . | . . Fastest Speed 50 | 50 100 Average Speed 157 | 157 150 Slowest Speed 160 | 160 160 Overloaded Moves . | . . Propulsion Burnouts . | . . Robots Hopped . | . . Potential Cave-ins . | . . Cave-ins Triggered . | . . Exploration Rate (%) 24 | 36 12 Regions Visited 1 Branch Regions . Pre-discovered Areas . | . . Known Exits Taken . | . . Unknown Exits Taken 1 | 1 . Scrap Searched . | . . Spaces Dug . | . . Terrain Destroyed . | . . Melee . | . . Projectile . | . . AOE . | . . Terrain Rammed . | . . Walls Destroyed . | . . Machines Disabled . | . . Actions | -11 -10 --------- Run | Yrd Mat Total 1019 | 920 99 Wait . | . . Move 960 | 888 72 Hop . | . . Pick Up 9 | 8 1 Fast Attach . | . . Attach 8 | 7 1 Detach . | . . Swap . | . . Drop 1 | 1 . Fire 25 | 2 23 Melee . | . . Ram 1 | . 1 Kick . | . . Crush 15 | 14 1 Escape Stasis . | . . Rewire . | . . Trap . | . . Miscellaneous . | . . Route ------- -11/Scrapyard -10/Materials History --------- Turn | Location | Event 4 | -11/Scrapyard | Discovered new exit (range 15) 1447 | -11/Scrapyard | Entered Materials 1448 | -10/Materials | Build established: Mutant 1598 | -10/Materials | Core integrity fell below 50% 1609 | -10/Materials | Core integrity fell below 20% 1617 | -10/Materials | Destroyed by G-34 Mercenary with Small Laser Last Messages --------------- 01592_ K-01 Serf destroyed. 01593_ Acquired 41 matter. 01593_ R-06 Scavenger collects Particle Gun. 01594_ Lgt. Treads destroyed. 01594_ R-06 Scavenger collects Aluminum Leg. 01594_ K-01 Serf collects debris. 01596_ Lgt. Treads destroyed. 01596_ Acquired Sml. Laser. [Achievement: There's More Where That Came From] 01597_ K-01 Serf collects debris. 01599_ R-06 Scavenger collects Wheel. 01600_ G-34 Mercenary destroyed. 01600_ K-01 Serf collects debris. 01603_ R-06 Scavenger collects Heat Sink. 01603_ K-01 Serf collects debris. 01605_ Sml. Laser destroyed. 01606_ Slammed into R-06 Scavenger. 01606_ K-01 Serf collects debris. 01609_ U-05 Engineer lays Concrete. 01611_ K-01 Serf collects debris. Map ----- +----------------------------------------------------+ | ?????????????????????????????????????????????????? | | ?????????????????????????????????????????????????? | | ?????????????????????????????????????????????????? | | ?????????????????????????????????????????????????? | | ?????????????????????????????????????????????????? | | ?????????????????????????????????????????????????? | | ?????????????????????????????????????????????????? | | ?????????????????????????????????????????????????? | | ?????????????????????????????????????????????????? | | ???????????????????????????? ????????????????????? | | ????????????????????????????? ???????????????????? | | ???????????????? ????????????????????????????????? | | ??????????????????????????????#??????????????????? | | ???????????????? ?? ?#??????????????????????????? | | ?????????????????????????????????????????????????? | | ???????????????????????????###########???????????? | | ????##?????????????????????# #???????????? | | ???? #?####?????? ??????## ! #? ?????????? | | ????? # ??????????#?#?# #??????? ???? | | ?????? # ??????????????# """ #????#??????? | | ???????? ????? ????????# """ " #????#??????? | | ????#????# ??????????????# """ T ###?????#???? | | ????????## ##????????#?#?# " #???????????? | | ????????# ###########??# #???????????? | | ????????# g ##########+###???????????? | | ????????+ T %% @ #????#??????? | | ????????# kg ######## #?#?????????? | | ????????# ###########??#???# T #???????????? | | ????????## ##??????#?????????# #???????????? | | ???? ????# ??????????????????# #???#???????? | | ?????????# ??????????#???????## ##????#??????? | | ?????????# ?????????????? ??#?# #???????#????? | | ?????????# ????????????????#???# ##???????????? | | ?????????# ?????????? ???????? # #?????#??????? | | ?????????# ????????????? ?"????# #???????????#? | | ?????????# ????????? ?????"????# #???#????????? | | ????#????# ??????? ???????"???? # #????????????? | | ?????????# ?????????? ??????"???+ #????????????? | | ?????????# ????????????#????????# ##???????????? | | ?????????# ???????????????????? # #????????????? | | ?????????+??????????????????????# #???????????#? | | ?????????????????????? ?????????# #????????????? | | ????????????????????????????????# #????????????? | | ????????????????????????????#??## #????????????? | | ???????????????????????#????????# #??????#?????? | | ????????????????????????????????# #????#???????? | | ????????????????????????????????# #???#????????? | | ????????????????????????????????# #????#???????? | | ???????????????????????##???????# #????#???????? | | ????????????????????????????????# #????????????? | +----------------------------------------------------+ Best States ------------- Heat Dissipation 25 Energy Generation 10 Energy Capacity 250 Matter Stores 234 Matter Capacity 300 Sight Range 16 Terrain Scan Range 16 Terrain Scan Density 10 Evasion (%) 50 Recoil Reduction 2 Item Schematics ----------------- None Robot Schematics ------------------ None Fabricated ------------ Nothing Repaired ---------- Nothing Studied --------- None Alien Tech Used ----------------- None Achievements -------------- There's More Where That Came From Challenges ------------ None Game ------ Seed GravitonTechTracker Manual? 0 Play Time 00:06:55 Cumulative 34.2 hours Start 2026.02.23 @ 09:35:07 End 2026.02.23 @ 09:40:49 Sessions 1 Manual Loads 0 Difficulty Rogue Special Mode None Game No. 29 Rogue 29 Adventurer 0 Explorer 0 Win Type - Total 3 Types 2/0/1/0/0/0/0/0/0/0 Lore% 27 Gallery% 33 Achievement% 25 Wizard Run 0 Options --------- Layout 1 ASCII 0 Keyboard 0 Movement Mouse Keybinds 0 Fullscreen 1 Font 24/Smallcaps Map View 50x35 Zoom Use 0% Tactical HUD 1 Map Filters NONE Filters NONE Steam 1 RUN: 34a02a06-a091-4941-851f-2fde99f5618b